fUST/lending_fUST_20250720
["ID","MTS","AMOUNT","RATE_DAILY","PERIOD"]
[373412678,1752990641573,-460.0,0.00017566,2]
[373412679,1752990641584,-490.47343035,0.00017566,2]
[373412680,1752990641594,-460.0,0.00017566,2]
[373412681,1752990641604,-460.0,0.00017566,2]
[373412682,1752990641614,-500.0,0.00017573,2]
[373412683,1752990641623,-500.0,0.00017573,2]
[373412684,1752990641633,-927.07902042,0.00017639,2]
[373412685,1752990641642,-831.66,0.00017666,2]
[373412686,1752990641654,-460.0,0.00017666,2]
[373412687,1752990641664,-568.32,0.00017666,2]
[373412688,1752990641675,-460.0,0.00017666,2]
[373412689,1752990641685,-415.78513781,0.00017666,2]
[373412690,1752990641695,-873.95,0.00017666,2]
[373412691,1752990641705,-460.0,0.00017666,2]
[373412692,1752990641715,-519.69078445,0.00017736,2]
[373412693,1752990641725,-460.0,0.00017736,2]
[373412694,1752990641735,-460.0,0.00017736,2]
[373412695,1752990641744,-460.0,0.00017737,2]
[373412696,1752990641754,-460.0,0.00017737,2]
[373412697,1752990641763,-460.0,0.00017737,2]
[373412698,1752990641774,-460.0,0.00017737,2]
[373412699,1752990641785,-460.0,0.00017737,2]
[373412700,1752990641795,-1089.66,0.00017737,2]
[373412701,1752990641804,-464.95365107,0.00017737,2]
[373412702,1752990641813,-460.0,0.00017737,2]
[373412703,1752990641823,-460.0,0.00017737,2]
[373412704,1752990641832,-460.0,0.00017737,2]
[373412705,1752990641841,-460.0,0.00017737,2]
[373412706,1752990641851,-460.0,0.00017737,2]
[373412707,1752990641860,-770.1,0.00017737,2]
[373412708,1752990641870,-460.0,0.00017737,2]
[373412709,1752990641882,-460.0,0.00017737,2]
[373412710,1752990641892,-460.0,0.00017737,2]
[373412711,1752990641901,-460.0,0.00017737,2]
[373412712,1752990641912,-595.15908724,0.00017737,2]
[373412713,1752990641922,-460.0,0.00017737,2]
[373412714,1752990641932,-1867.66,0.00017737,2]
[373412715,1752990641941,-1136.05,0.00017737,2]
[373412716,1752990641951,-460.0,0.00017737,2]
[373412717,1752990641960,-460.0,0.00017738,2]
[373412718,1752990641969,-460.0,0.00017738,2]
[373412719,1752990641978,-460.0,0.00017738,2]
[373412720,1752990641988,-382.31403933,0.00017738,2]
[373412721,1752990641996,-460.0,0.00017738,2]
[373412722,1752990642006,-460.0,0.00017738,2]
[373412723,1752990642015,-460.0,0.00017738,2]
[373412724,1752990642025,-460.0,0.00017738,2]
[373412725,1752990642034,-460.0,0.00017738,2]
[373412726,1752990642043,-460.0,0.00017738,2]
[373412727,1752990642052,-460.0,0.00017738,2]
[373412728,1752990642062,-460.0,0.00017738,2]
[373412729,1752990642071,-460.0,0.00017738,2]
[373412730,1752990642080,-460.0,0.00017738,2]
[373412731,1752990642090,-460.0,0.00017738,2]
[373412732,1752990642099,-460.0,0.00017738,2]
[373412733,1752990642108,-460.0,0.00017738,2]
[373412734,1752990642118,-460.0,0.00017738,2]
[373412735,1752990642127,-460.0,0.00017738,2]
[373412736,1752990642136,-460.0,0.00017738,2]
[373412737,1752990642145,-460.0,0.00017738,2]
[373412738,1752990642155,-460.0,0.00017738,2]
[373412739,1752990642165,-460.0,0.00017738,2]
[373412740,1752990642175,-460.0,0.00017738,2]
[373412741,1752990642185,-460.0,0.00017738,2]
[373412742,1752990642196,-460.0,0.00017738,2]
[373412743,1752990642205,-460.0,0.00017738,2]
[373412744,1752990642214,-460.0,0.00017738,2]
[373412745,1752990642225,-460.0,0.00017738,2]
[373412746,1752990642235,-460.0,0.00017738,2]
[373412747,1752990642244,-460.0,0.00017738,2]
[373412748,1752990642253,-460.0,0.00017738,2]
[373412749,1752990642262,-460.0,0.00017738,2]
[373412750,1752990642271,-460.0,0.00017738,2]
[373412751,1752990642281,-460.0,0.00017738,2]
[373412752,1752990642291,-370.54610991,0.00017738,2]
[373412753,1752990642300,-460.0,0.00017738,2]
[373412754,1752990642310,-460.0,0.00017738,2]
[373412755,1752990642319,-460.0,0.00017738,2]
[373412756,1752990642328,-460.0,0.00017738,2]
[373412757,1752990642338,-460.0,0.00017738,2]
[373412758,1752990642347,-460.0,0.00017738,2]
[373412759,1752990642356,-460.0,0.00017738,2]
[373412760,1752990642366,-166.23063077,0.00017738,2]
[373412761,1752990642375,-460.0,0.00017738,2]
[373412762,1752990642385,-674.32,0.00017738,2]
[373412763,1752990642395,-460.0,0.00017738,2]
[373412764,1752990642404,-460.0,0.00017738,2]
[373412765,1752990642414,-460.0,0.00017738,2]
[373412766,1752990642424,-460.0,0.00017738,2]
[373412767,1752990642433,-1033.35,0.00017738,2]
[373412768,1752990642442,-460.0,0.00017738,2]
[373412769,1752990642452,-460.0,0.00017738,2]
[373412770,1752990642462,-460.0,0.00017738,2]
[373412771,1752990642471,-460.0,0.00017738,2]
[373412772,1752990642481,-460.0,0.00017738,2]
[373412773,1752990642490,-1051.82,0.00017738,2]
[373412774,1752990642502,-460.0,0.00017738,2]
[373412775,1752990642512,-460.0,0.00017738,2]
[373412776,1752990642521,-460.0,0.00017738,2]
[373412777,1752990642530,-460.0,0.00017738,2]
[373412778,1752990642540,-460.0,0.00017738,2]
[373412779,1752990642549,-460.0,0.00017738,2]
[373412780,1752990642559,-460.0,0.00017738,2]
[373412781,1752990642569,-460.0,0.00017738,2]
[373412782,1752990642580,-460.0,0.00017738,2]
[373412783,1752990642590,-460.0,0.00017738,2]
[373412784,1752990642599,-460.0,0.00017738,2]
[373412785,1752990642609,-460.0,0.00017738,2]
[373412786,1752990642618,-460.0,0.00017738,2]
[373412787,1752990642627,-460.0,0.00017738,2]
[373412788,1752990642637,-500.0,0.00017738,2]
[373412789,1752990642646,-460.0,0.00017739,2]
[373412790,1752990642656,-460.0,0.00017739,2]
[373412791,1752990642665,-460.0,0.00017739,2]
[373412792,1752990642675,-4205.3,0.00017739,2]
[373412793,1752990642683,-460.0,0.00017739,2]
[373412794,1752990642693,-460.0,0.00017739,2]
[373412795,1752990642702,-460.0,0.00017739,2]
[373412796,1752990642712,-460.0,0.00017739,2]
[373412797,1752990642721,-460.0,0.00017739,2]
[373412798,1752990642731,-1521.82,0.00017739,2]
[373412799,1752990642740,-477.91237632,0.00017739,2]
[373412800,1752990642749,-460.0,0.00017739,2]
[373412801,1752990642758,-460.0,0.00017739,2]
[373412802,1752990642767,-460.0,0.00017739,2]
[373412803,1752990642777,-460.0,0.00017739,2]
[373412804,1752990642797,-159.89882593,0.00017739,2]
[373412805,1752990642806,-460.0,0.00017739,2]
[373412806,1752990642816,-460.0,0.00017739,2]
[373412807,1752990642826,-460.0,0.00017837,2]
[373412808,1752990642835,-460.0,0.00017837,2]
[373412809,1752990642845,-460.0,0.00017837,2]
[373412810,1752990642855,-460.0,0.00017837,2]
[373412811,1752990642864,-460.0,0.00017837,2]
[373412812,1752990642874,-460.0,0.00017837,2]
[373412813,1752990642884,-460.0,0.00017837,2]
[373412814,1752990642894,-460.0,0.00017837,2]
[373412815,1752990642904,-460.0,0.00017837,2]
[373412816,1752990642915,-460.0,0.00017837,2]
[373412817,1752990642924,-460.0,0.00017837,2]
[373412818,1752990642934,-460.0,0.00017837,2]
[373412819,1752990642944,-258.73630041,0.00017837,2]
[373412820,1752990642953,-460.0,0.00017837,2]
[373412821,1752990642963,-460.0,0.00017837,2]
[373412823,1752990642973,-460.0,0.00017837,2]
[373412825,1752990642983,-460.0,0.00017837,2]
[373412826,1752990642992,-467.22837519,0.00017837,2]
[373412827,1752990643001,-460.0,0.00017837,2]
[373412828,1752990643011,-460.0,0.00017837,2]
[373412829,1752990643020,-460.0,0.00017837,2]
[373412830,1752990643030,-460.0,0.00017837,2]
[373412831,1752990643039,-460.0,0.00017837,2]
[373412832,1752990643048,-460.0,0.00017837,2]
[373412834,1752990643058,-460.0,0.00017837,2]
[373412835,1752990643067,-269.77318877,0.00017837,2]
[373412836,1752990643076,-460.0,0.00017837,2]
[373412838,1752990643086,-460.0,0.00017837,2]
[373412842,1752990643095,-460.0,0.00017837,2]
[373412845,1752990643106,-460.0,0.00017837,2]
[373412848,1752990643115,-460.0,0.00017837,2]
[373412851,1752990643124,-460.0,0.00017837,2]
[373412854,1752990643134,-460.0,0.00017837,2]
[373412858,1752990643145,-460.0,0.00017837,2]
[373412861,1752990643154,-460.0,0.00017837,2]
[373412863,1752990643164,-460.0,0.00017837,2]
[373412865,1752990643173,-460.0,0.00017837,2]
[373412867,1752990643182,-460.0,0.00017837,2]
[373412869,1752990643191,-460.0,0.00017837,2]
[373412871,1752990643202,-460.0,0.00017837,2]
[373412873,1752990643211,-460.0,0.00017837,2]
[373412875,1752990643221,-460.0,0.00017837,2]
[373412877,1752990643230,-460.13617629,0.00017837,2]
[373412879,1752990643240,-460.0,0.00017837,2]
[373412881,1752990643249,-460.0,0.00017838,2]
[373412883,1752990643258,-1795.05,0.00017839,2]
[373412885,1752990643268,-595.67,0.00017839,2]
[373412887,1752990643277,-678.89,0.00017839,2]
[373412889,1752990643287,-831.66,0.0001794,2]
[373412891,1752990643296,-460.0,0.0001794,2]
[373412893,1752990643306,-568.32,0.0001794,2]
[373412895,1752990643315,-461.45629516,0.0001794,2]
[373412897,1752990643325,-873.95,0.0001794,2]
[373412899,1752990643334,-460.0,0.0001794,2]
[373412901,1752990643344,-226.49,0.0001801,2]
[373412903,1752990643354,-460.0,0.00018011,2]
[373412905,1752990643363,-460.0,0.00018011,2]
[373412907,1752990643373,-460.0,0.00018011,2]
[373412909,1752990643383,-1089.66,0.00018011,2]
[373412911,1752990643392,-460.0,0.00018011,2]
[373412913,1752990643402,-460.0,0.00018011,2]
[373412916,1752990643411,-238.36,0.00018011,2]
[373412918,1752990643421,-460.0,0.00018011,2]
[373412921,1752990643430,-460.0,0.00018011,2]
[373412923,1752990643440,-770.1,0.00018011,2]
[373412925,1752990643451,-460.0,0.00018011,2]
[373412927,1752990643460,-460.0,0.00018011,2]
[373412929,1752990643470,-460.0,0.00018011,2]
[373412931,1752990643480,-460.0,0.00018011,2]
[373412933,1752990643489,-1867.66,0.00018011,2]
[373412935,1752990643504,-460.0,0.00018011,2]
[373412937,1752990643514,-1136.05,0.00018011,2]
[373412940,1752990643523,-460.0,0.00018012,2]
[373412942,1752990643532,-460.0,0.00018012,2]
[373412944,1752990643543,-460.0,0.00018012,2]
[373412946,1752990643552,-460.0,0.00018012,2]
[373412948,1752990643563,-424.25015195,0.00018012,2]
[373412950,1752990643572,-460.0,0.00018012,2]
[373412952,1752990643582,-460.0,0.00018012,2]
[373412954,1752990643591,-460.0,0.00018012,2]
[373412956,1752990643601,-460.0,0.00018012,2]
[373412958,1752990643612,-459.471953,0.00018012,2]
[373412960,1752990643622,-460.0,0.00018012,2]
[373412962,1752990643631,-460.0,0.00018012,2]
[373412964,1752990643640,-460.0,0.00018012,2]
[373412966,1752990643649,-580.70053603,0.00018012,2]
[373412968,1752990643658,-460.0,0.00018012,2]
[373412970,1752990643668,-460.0,0.00018012,2]
[373412972,1752990643677,-460.0,0.00018012,2]
[373412974,1752990643686,-460.0,0.00018012,2]
[373412975,1752990643696,-460.0,0.00018012,2]
[373412977,1752990643705,-460.0,0.00018012,2]
[373412978,1752990643715,-460.0,0.00018012,2]
[373412979,1752990643724,-460.0,0.00018012,2]
[373412980,1752990643733,-460.0,0.00018012,2]
[373412981,1752990643743,-460.0,0.00018012,2]
[373412982,1752990643754,-460.0,0.00018012,2]
[373412983,1752990643764,-460.0,0.00018012,2]
[373412984,1752990643773,-460.0,0.00018012,2]
[373412985,1752990643783,-460.0,0.00018012,2]
[373412986,1752990643793,-460.0,0.00018012,2]
[373412987,1752990643802,-559.08728347,0.00018012,2]
[373412988,1752990643812,-502.1114801,0.00018012,2]
[373412989,1752990643821,-460.0,0.00018012,2]
[373412990,1752990643832,-460.0,0.00018012,2]
[373412991,1752990643841,-462.34,0.00018012,2]
[373412992,1752990643851,-674.32,0.00018012,2]
[373412993,1752990643867,-460.0,0.00018012,2]
[373412994,1752990643876,-460.0,0.00018012,2]
[373412995,1752990643886,-460.0,0.00018012,2]
[373412996,1752990643896,-1033.35,0.00018012,2]
[373412997,1752990643906,-480.02,0.00018012,2]
[373412998,1752990643916,-460.0,0.00018012,2]
[373413000,1752990643926,-460.0,0.00018012,2]
[373413002,1752990643935,-354.41743296,0.00018012,2]
[373413004,1752990643946,-1051.82,0.00018012,2]
[373413005,1752990643956,-460.0,0.00018012,2]
[373413007,1752990643965,-482.19166301,0.00018012,2]
[373413008,1752990644110,-460.0,0.00018012,2]
[373413009,1752990644121,-460.0,0.00018012,2]
[373413010,1752990644130,-460.0,0.00018012,2]
[373413011,1752990644139,-460.0,0.00018012,2]
[373413012,1752990644148,-539.35,0.00018012,2]
[373413013,1752990644157,-460.0,0.00018012,2]
[373413014,1752990644166,-460.0,0.00018012,2]
[373413015,1752990644176,-294.55994405,0.00018012,2]
[373413016,1752990644185,-460.0,0.00018013,2]
[373413017,1752990644195,-4205.3,0.00018013,2]
[373413018,1752990644204,-548.70595581,0.00018013,2]
[373413019,1752990644214,-460.0,0.00018013,2]
[373413020,1752990644223,-460.0,0.00018013,2]
[373413021,1752990644232,-1521.82,0.00018013,2]
[373413022,1752990644241,-460.0,0.00018013,2]
[373413023,1752990644250,-460.0,0.00018013,2]
[373413024,1752990644259,-460.0,0.00018013,2]
[373413025,1752990644268,-460.0,0.00018013,2]
[373413026,1752990644277,-460.0,0.00018013,2]
[373413027,1752990644287,-500.0,0.00018021,2]
[373413028,1752990644296,-500.0,0.00018061,2]
[373413029,1752990644305,-460.0,0.00018111,2]
[373413030,1752990644314,-460.0,0.00018111,2]
[373413031,1752990644323,-460.0,0.00018111,2]
[373413032,1752990644333,-460.0,0.00018111,2]
[373413033,1752990644342,-182.72,0.00018111,2]
[373413034,1752990644352,-271.25,0.00018111,2]
[373413035,1752990644362,-460.0,0.00018111,2]
[373413036,1752990644371,-460.0,0.00018111,2]
[373413037,1752990644380,-460.0,0.00018111,2]
[373413038,1752990644389,-460.0,0.00018111,2]
[373413039,1752990644398,-460.0,0.00018111,2]
[373413040,1752990644407,-460.0,0.00018111,2]
[373413041,1752990644417,-460.0,0.00018111,2]
[373413042,1752990644425,-460.0,0.00018111,2]
[373413043,1752990644434,-600.0,0.00018111,2]
[373413044,1752990644443,-460.0,0.00018111,2]
[373413045,1752990644453,-460.0,0.00018111,2]
[373413046,1752990644463,-460.0,0.00018111,2]
[373413047,1752990644472,-460.0,0.00018111,2]
[373413048,1752990644482,-460.0,0.00018111,2]
[373413049,1752990644492,-460.0,0.00018111,2]
[373413050,1752990644503,-460.0,0.00018111,2]
[373413051,1752990644513,-460.0,0.00018111,2]
[373413052,1752990644522,-460.0,0.00018111,2]
[373413053,1752990644532,-460.0,0.00018111,2]
[373413054,1752990644541,-460.0,0.00018111,2]
[373413055,1752990644551,-460.0,0.00018111,2]
[373413056,1752990644560,-460.0,0.00018112,2]
[373413057,1752990644570,-501.22358452,0.00018113,2]
[373413058,1752990644582,-1795.05,0.00018113,2]
[373413059,1752990644591,-595.67,0.00018113,2]
[373413060,1752990644601,-678.89,0.00018113,2]
[373413061,1752990644610,-3701.14674377,0.00018206,2]
[373413062,1752990644619,-831.66,0.00018214,2]
[373413063,1752990644628,-460.0,0.00018214,2]
[373413064,1752990644638,-568.32,0.00018214,2]
[373413065,1752990644648,-873.95,0.00018214,2]
[373413066,1752990644660,-460.0,0.00018214,2]
[373413067,1752990644671,-460.0,0.00018285,2]
[373413068,1752990644681,-460.0,0.00018285,2]
[373413069,1752990644691,-460.0,0.00018285,2]
[373413070,1752990644703,-1089.66,0.00018285,2]
[373413071,1752990644712,-460.0,0.00018285,2]
[373413072,1752990644721,-460.0,0.00018285,2]
[373413073,1752990644731,-460.0,0.00018285,2]
[373413074,1752990644741,-460.0,0.00018285,2]
[373413075,1752990644751,-770.1,0.00018285,2]
[373413076,1752990644761,-460.0,0.00018285,2]
[373413077,1752990644770,-460.0,0.00018285,2]
[373413078,1752990644780,-460.0,0.00018285,2]
[373413079,1752990644790,-460.0,0.00018285,2]
[373413080,1752990644799,-1867.66,0.00018285,2]
[373413081,1752990644808,-460.0,0.00018285,2]
[373413082,1752990644818,-1136.05,0.00018285,2]
[373413083,1752990644827,-460.0,0.00018286,2]
[373413084,1752990644837,-536.65,0.00018286,2]
[373413085,1752990644847,-460.0,0.00018286,2]
[373413086,1752990644856,-460.0,0.00018286,2]
[373413087,1752990644865,-460.0,0.00018286,2]
[373413088,1752990644875,-460.0,0.00018286,2]
[373413089,1752990644885,-192.7,0.00018286,2]
[373413090,1752990644894,-560.07,0.00018286,2]
[373413091,1752990644903,-460.0,0.00018286,2]
[373413092,1752990644913,-460.0,0.00018286,2]
[373413093,1752990644922,-460.0,0.00018286,2]
[373413094,1752990644932,-460.0,0.00018286,2]
[373413095,1752990644942,-460.0,0.00018286,2]
[373413096,1752990644955,-460.0,0.00018286,2]
[373413097,1752990644964,-460.0,0.00018286,2]
[373413098,1752990644974,-460.0,0.00018286,2]
[373413099,1752990644984,-460.0,0.00018286,2]
[373413100,1752990644993,-222.2058019,0.00018286,2]
[373413101,1752990645004,-460.0,0.00018286,2]
[373413102,1752990645014,-460.0,0.00018286,2]
[373413103,1752990645023,-460.0,0.00018286,2]
[373413104,1752990645033,-460.0,0.00018286,2]
[373413105,1752990645043,-460.0,0.00018286,2]
[373413106,1752990645052,-460.0,0.00018286,2]
[373413107,1752990645062,-334.47,0.00018286,2]
[373413108,1752990645072,-460.0,0.00018286,2]
[373413109,1752990645082,-674.32,0.00018286,2]
[373413110,1752990645092,-173.99,0.00018286,2]
[373413111,1752990645102,-460.0,0.00018286,2]
[373413112,1752990645111,-460.0,0.00018286,2]
[373413113,1752990645121,-1033.35,0.00018286,2]
[373413114,1752990645131,-460.0,0.00018286,2]
[373413115,1752990645143,-460.0,0.00018286,2]
[373413116,1752990645152,-1051.82,0.00018286,2]
[373413117,1752990645162,-460.0,0.00018286,2]
[373413118,1752990645171,-460.0,0.00018286,2]
[373413119,1752990645181,-460.0,0.00018286,2]
[373413120,1752990645190,-460.0,0.00018286,2]
[373413121,1752990645201,-460.0,0.00018286,2]
[373413122,1752990645211,-460.0,0.00018286,2]
[373413123,1752990645220,-4205.3,0.00018287,2]
[373413124,1752990645230,-460.0,0.00018287,2]
[373413125,1752990645239,-460.0,0.00018287,2]
[373413126,1752990645249,-1521.82,0.00018287,2]
[373413127,1752990645258,-460.0,0.00018287,2]
[373413128,1752990645267,-460.0,0.00018287,2]
[373413129,1752990645277,-460.0,0.00018287,2]
[373413130,1752990645286,-460.0,0.00018287,2]
[373413131,1752990645296,-460.0,0.00018287,2]
[373413132,1752990645305,-970.96172023,0.0001838,2]
[373413133,1752990645314,-460.0,0.00018385,2]
[373413134,1752990645323,-460.0,0.00018385,2]
[373413135,1752990645333,-460.0,0.00018385,2]
[373413136,1752990645343,-460.0,0.00018385,2]
[373413137,1752990645353,-460.0,0.00018385,2]
[373413138,1752990645364,-196.95,0.00018385,2]
[373413139,1752990645374,-460.0,0.00018385,2]
[373413140,1752990645383,-460.0,0.00018385,2]
[373413141,1752990645394,-460.0,0.00018385,2]
[373413142,1752990645404,-460.0,0.00018385,2]
[373413143,1752990645415,-460.0,0.00018385,2]
[373413144,1752990645426,-460.0,0.00018385,2]
[373413145,1752990645435,-460.0,0.00018385,2]
[373413146,1752990645445,-277.47721017,0.00018385,2]
[373413147,1752990645454,-460.0,0.00018385,2]
[373413148,1752990645463,-460.0,0.00018385,2]
[373413149,1752990645473,-460.0,0.00018386,2]
[373413150,1752990645482,-1795.05,0.00018387,2]
[373413151,1752990645492,-595.67,0.00018387,2]
[373413152,1752990645506,-678.89,0.00018387,2]
[373413153,1752990645515,-831.66,0.00018488,2]
[373413154,1752990645524,-460.0,0.00018488,2]
[373413155,1752990645534,-568.32,0.00018488,2]
[373413156,1752990645543,-873.95,0.00018488,2]
[373413157,1752990645554,-460.0,0.00018488,2]
[373413158,1752990645564,-402.24706456,0.00018498,2]
[373413159,1752990645574,-460.0,0.00018559,2]
[373413160,1752990645585,-460.0,0.00018559,2]
[373413161,1752990645595,-460.0,0.00018559,2]
[373413162,1752990645604,-1089.66,0.00018559,2]
[373413163,1752990645613,-460.0,0.00018559,2]
[373413164,1752990645623,-460.0,0.00018559,2]
[373413165,1752990645633,-405.47,0.00018559,2]
[373413166,1752990645642,-770.1,0.00018559,2]
[373413167,1752990645651,-460.0,0.00018559,2]
[373413168,1752990645660,-460.0,0.00018559,2]
[373413169,1752990645670,-460.0,0.00018559,2]
[373413170,1752990645679,-215.11488174,0.00018559,2]
[373413171,1752990645688,-1867.66,0.00018559,2]
[373413172,1752990645699,-460.0,0.00018559,2]
[373413173,1752990645709,-1136.05,0.00018559,2]
[373413174,1752990645719,-460.0,0.0001856,2]
[373413175,1752990645728,-252.9,0.0001856,2]
[373413176,1752990645737,-460.0,0.0001856,2]
[373413177,1752990645747,-528.5709046,0.0001856,2]
[373413178,1752990645756,-460.0,0.0001856,2]
[373413179,1752990645765,-460.0,0.0001856,2]
[373413180,1752990645775,-460.0,0.0001856,2]
[373413181,1752990645784,-460.0,0.0001856,2]
[373413182,1752990645794,-460.0,0.0001856,2]
[373413183,1752990645803,-460.0,0.0001856,2]
[373413184,1752990645812,-460.0,0.0001856,2]
[373413185,1752990645822,-460.0,0.0001856,2]
[373413186,1752990645831,-460.0,0.0001856,2]
[373413187,1752990645840,-460.0,0.0001856,2]
[373413188,1752990645850,-460.0,0.0001856,2]
[373413189,1752990645859,-460.0,0.0001856,2]
[373413190,1752990645869,-460.0,0.0001856,2]
[373413191,1752990645879,-460.0,0.0001856,2]
[373413192,1752990645888,-460.0,0.0001856,2]
[373413193,1752990645898,-460.0,0.0001856,2]
[373413194,1752990645908,-674.32,0.0001856,2]
[373413195,1752990645918,-460.0,0.0001856,2]
[373413196,1752990645927,-334.15614441,0.0001856,2]
[373413197,1752990645937,-1033.35,0.0001856,2]
[373413198,1752990645948,-460.0,0.0001856,2]
[373413200,1752990645957,-460.0,0.0001856,2]
[373413201,1752990645966,-1051.82,0.0001856,2]
[373413202,1752990645975,-460.0,0.0001856,2]
[373413203,1752990645984,-460.0,0.0001856,2]
[373413204,1752990645993,-460.0,0.0001856,2]
[373413205,1752990646003,-555.02,0.0001856,2]
[373413207,1752990646012,-209.0977,0.0001856,2]
[373413208,1752990646021,-570.6491588,0.0001856,2]
[373413209,1752990646030,-4205.3,0.00018561,2]
[373413210,1752990646040,-460.0,0.00018561,2]
[373413211,1752990646049,-1521.82,0.00018561,2]
[373413212,1752990646058,-460.0,0.00018561,2]
[373413213,1752990646068,-460.0,0.00018561,2]
[373413214,1752990646077,-460.0,0.00018561,2]
[373413215,1752990646086,-460.0,0.00018561,2]
[373413216,1752990646096,-460.0,0.00018561,2]
[373413217,1752990646105,-195.90851117,0.00018609,2]
[373413218,1752990646114,-460.0,0.00018659,2]
[373413219,1752990646123,-460.0,0.00018659,2]
[373413221,1752990646133,-460.0,0.00018659,2]
[373413222,1752990646142,-460.0,0.00018659,2]
[373413223,1752990646151,-460.0,0.00018659,2]
[373413224,1752990646159,-395.22,0.00018659,2]
[373413225,1752990646168,-460.0,0.00018659,2]
[373413226,1752990646177,-1795.05,0.00018661,2]
[373413227,1752990646186,-595.67,0.00018661,2]
[373413228,1752990646195,-678.89,0.00018661,2]
[373413229,1752990646204,-260.0,0.00018745,2]
[373413230,1752990646214,-831.66,0.00018762,2]
[373413231,1752990646223,-460.0,0.00018762,2]
[373413232,1752990646232,-568.32,0.00018762,2]
[373413233,1752990646241,-873.95,0.00018762,2]
[373413235,1752990646250,-460.0,0.00018762,2]
[373413236,1752990646260,-873.76,0.00018826,3]
[373413237,1752990646269,-436.88,0.00018826,3]
[373413238,1752990646279,-460.0,0.00018833,2]
[373413239,1752990646289,-460.0,0.00018833,2]
[373413240,1752990646299,-460.0,0.00018833,2]
[373413241,1752990646309,-1089.66,0.00018833,2]
[373413242,1752990646318,-460.0,0.00018833,2]
[373413243,1752990646329,-460.0,0.00018833,2]
[373413244,1752990646340,-770.1,0.00018833,2]
[373413245,1752990646349,-460.0,0.00018833,2]
[373413246,1752990646359,-460.0,0.00018833,2]
[373413247,1752990646368,-460.0,0.00018833,2]
[373413248,1752990646378,-1867.66,0.00018833,2]
[373413249,1752990646387,-460.0,0.00018833,2]
[373413250,1752990646397,-1136.05,0.00018833,2]
[373413251,1752990646406,-460.0,0.00018834,2]
[373413252,1752990646415,-460.0,0.00018834,2]
[373413253,1752990646425,-460.0,0.00018834,2]
[373413254,1752990646434,-460.0,0.00018834,2]
[373413255,1752990646443,-412.70668576,0.00018834,2]
[373413256,1752990646454,-460.0,0.00018834,2]
[373413257,1752990646463,-460.0,0.00018834,2]
[373413258,1752990646473,-460.0,0.00018834,2]
[373413259,1752990646483,-460.0,0.00018834,2]
[373413260,1752990646493,-460.0,0.00018834,2]
[373413261,1752990646506,-450.56033247,0.00018834,2]
[373413262,1752990646516,-460.0,0.00018834,2]
[373413263,1752990646526,-460.0,0.00018834,2]
[373413264,1752990646535,-460.0,0.00018834,2]